Cogmind - Beta 10.1 @@@ ROGUE MODE // 2020.09.30 @ 15:45:31 Player: Michael Result: Self-destructed Performance ------------- Evolutions (6) 3000 Regions Visited (11) 2200 Robots Destroyed (75) 375 Value Destroyed (2771) 2771 Prototype IDs (23) 460 Alien Tech Used (0) 0 Bonus (547) 547 TOTAL SCORE: 9353 Bonus ------- High Alert Combat Kills 47 Entered Garrisons 200 Aligned with FarCom 300 Cogmind --------- Core Integrity 37/1150 Matter 135/300 Energy 100/100 System Corruption 26% Temperature Cool (0) Movement Core (50) Location -4/Factory Parts ------- > --- POWER (2) -------- (None) > --- PROPULSION (3) --- (None) > --- UTILITY (11) ----- Advanced Visual Processing Unit Advanced Signal Interpreter Advanced Terrain Scan Processor Advanced System Shield > --- WEAPON (3) ------- (None) > --- INVENTORY (4) ---- Micro Fission Core Medium Storage Unit Advanced Terrain Scanner Great Axe Peak State ------------ > --- POWER ------------ Micro Fission Core Micro Fission Core > --- PROPULSION ------- Armored Wheel Armored Huge Wheel > --- UTILITY ---------- High-capacity Storage Unit High-capacity Storage Unit High-capacity Storage Unit Matter Compressor Advanced Weight Redist. System Advanced Visual Processing Unit Advanced Signal Interpreter Advanced Terrain Scan Processor Advanced Melee Analysis Suite Layered Light Armor Plating Improved Hacking Suite > --- WEAPON ----------- Coil Gun Heavy Machine Gun Heavy Machine Gun > --- INVENTORY -------- Enhanced Nuclear Core Micro Nuclear Core Fission Core Fission Core Armored Wheel Improved Cooling System Medium Storage Unit Large Matter Pod Compact Matter Pod Advanced Terrain Scanner Improved Weapon Shielding Medium Reactive Plating Latent Energy Streamer Heavy Machine Gun Heavy Missile Launcher Heavy Missile Launcher Long-range Missile Launcher Katana Great Axe Power Sword [Rating: 80] Favorites ----------- Power Fission Core Engine Ion Engine Power Core Fission Core Propulsion Armored Wheel Leg Aluminum Leg Wheel Armored Wheel Flight Unit Impulse Thruster Utility High-capacity Storage Unit Device Advanced Terrain Scanner Storage High-capacity Storage Unit Processor Advanced Terrain Scan Processor Hackware Hacking Suite Protection Improved Medium Armor Plating Weapon Great Axe Energy Cannon Latent Energy Streamer Ballistic Gun Assault Rifle Launcher Heavy Rocket Launcher Slashing Weapon Great Axe Piercing Weapon Spear Build | -11 -10 -10 -10 -9 -8 -7 -7 -7 -6 -5 -4 ------- Run | Scr Mat Min Exi Min Mat Fac Gar Fac Fac Fac Fac Slots Evolved 12 | . . . . . 4 2 . . 2 2 2 Power 1 | . . . . . . 1 . . . . . Propulsion 1 | . . . . . . 1 . . . . . Utility 9 | . . . . . 3 . . . 2 2 2 Weapon 1 | . . . . . 1 . . . . . . Parts Attached 204 | 7 2 . 3 2 24 25 21 16 50 16 38 Power 21 | 1 . . . . 1 4 1 2 5 . 7 Engine 3 | 1 . . . . . 2 . . . . . Core 18 | . . . . . 1 2 1 2 5 . 7 Reactor . | . . . . . . . . . . . . Propulsion 24 | 2 . . . . 6 4 2 2 3 . 5 Treads . | . . . . . . . . . . . . Leg 3 | 2 . . . . 1 . . . . . . Wheel 20 | . . . . . 5 4 2 2 3 . 4 Hover . | . . . . . . . . . . . . Flight 1 | . . . . . . . . . . . 1 Utility 80 | 1 2 . 2 1 8 10 8 9 22 7 10 Device 28 | . . . 1 . 4 3 4 1 10 2 3 Storage 17 | 1 1 . 1 . 2 2 2 4 1 1 2 Processor 7 | . 1 . . . 1 1 . 2 2 . . Hackware 5 | . . . . . 1 . . 1 . 2 1 Protection 23 | . . . . 1 . 4 2 1 9 2 4 Artifact . | . . . . . . . . . . . . Weapon 79 | 3 . . 1 1 9 7 10 3 20 9 16 Energy Gun . | . . . . . . . . . . . . Energy Cannon 6 | . . . 1 . 2 1 1 . 1 . . Ballistic Gun 29 | 3 . . . 1 5 3 3 . 5 3 6 Ballistic Cannon . | . . . . . . . . . . . . Launcher 9 | . . . . . . . 3 . 2 2 2 Special Weapon . | . . . . . . . . . . . . Impact Weapon . | . . . . . . . . . . . . Slashing Weapon 33 | . . . . . 2 3 3 1 12 4 8 Piercing Weapon 2 | . . . . . . . . 2 . . . Special Melee Weapon . | . . . . . . . . . . . . Unidentified Prototypes . | . . . . . . . . . . . . Parts Lost 27 | . . . . 1 2 2 9 . . . 13 Power 4 | . . . . 1 . 1 1 . . . 1 Propulsion 11 | . . . . . 1 1 4 . . . 5 Utility 8 | . . . . . 1 . 2 . . . 5 Weapon 4 | . . . . . . . 2 . . . 2 Highest Loss Streak 6 | . . . . 1 1 1 6 . . . 6 Average Slot Usage (%) 87 | . 97 100 93 93 89 92 72 64 93 93 84 Engine 2 | . 14 14 14 11 . 5 . . . . . Core 9 | . . . . . 8 8 8 7 13 11 8 Leg 4 | . 28 28 28 28 7 . . . . . . Wheel 10 | . . . . . 9 22 11 9 13 11 9 Device 5 | . . . . . 15 6 4 1 5 4 5 Storage 13 | . 14 14 14 14 11 15 14 6 13 17 19 Processor 15 | . 11 14 7 . 2 7 7 14 26 23 18 Hackware 3 | . . . . . 8 7 5 6 . 4 5 Protection 1 | . . . . 10 5 . 2 . . . 3 Energy Cannon 1 | . . . 5 10 5 2 2 . . . . Ballistic Gun 4 | . 28 28 22 17 8 4 4 . . 3 2 Slashing Weapon 10 | . . . . . 6 8 4 6 18 13 9 Piercing Weapon 1 | . . . . . . . . 8 . . . Naked Turns . | . . . . . . . . . . . . Heaviest Build 145 | 13 17 17 49 56 62 94 93 82 103 122 145 Greatest Support 49 | 20 20 20 20 20 25 32 32 38 40 40 49 Greatest Overweight (x) 19 | . . . 2 2 5 3 19 2 2 3 9 Average Overweight (x) 1 | . . . 1 2 2 2 3 . 2 2 2 Largest Inventory Capacity 28 | 6 8 8 12 12 18 20 20 20 20 20 28 Average Capacity 17 | 5 7 8 11 12 13 19 18 10 20 20 25 Most Carried 22 | 4 8 8 12 12 15 20 20 20 20 19 22 Average Carried 15 | 2 6 8 9 11 11 18 16 8 19 18 16 Final Capacity 20 | 6 8 8 12 12 18 20 4 20 20 20 4 Final Carried 20 | 4 8 8 12 12 15 19 4 19 20 19 4 Class Distribution -------------------- 48% | Hauler-Assassin 24% | Mutant 13% | Assassin 9% | Hauler-Mutant 3% | Hauler-Skirmisher Dominant Class ---------------- Mutant | -10/Materials Mutant | -10/Mines Mutant | -10/Exiles Mutant | -9/Mines Assassin | -8/Materials Hauler-Assassin | -7/Factory Hauler-Mutant | -7/Garrison Mutant | -7/Factory Hauler-Assassin | -6/Factory Hauler-Assassin | -5/Factory Hauler-Assassin | -4/Factory Resources | -11 -10 -10 -10 -9 -8 -7 -7 -7 -6 -5 -4 ----------- Run | Scr Mat Min Exi Min Mat Fac Gar Fac Fac Fac Fac Matter Collected 3187 | 181 109 6 . 57 330 282 180 392 956 102 592 Remotely . | . . . . . . . . . . . . Salvage Created 2952 | . . . . 7 454 295 266 197 926 184 623 Parts 142 | . . . . . 18 19 14 7 40 17 27 Haulers Intercepted . | . . . . . . . . . . . . Recyclers Shooed 4 | . . . . . . . . . 3 . 1 Parts Field Recycled . | . . . . . . . . . . . . Retrieved Matter . | . . . . . . . . . . . . Parts Self-Destructed . | . . . . . . . . . . . . Prevented . | . . . . . . . . . . . . Kills | -11 -10 -10 -10 -9 -8 -7 -7 -7 -6 -5 -4 ------- Run | Scr Mat Min Exi Min Mat Fac Gar Fac Fac Fac Fac Combat Hostiles Destroyed 45 | . . . . 1 3 3 12 . 12 7 7 Melee 15 | . . . . . . 2 2 . 8 1 2 Guns 7 | . . . . 1 1 1 . . 1 1 2 Cannons 2 | . . . . . . . 2 . . . . AOE 19 | . . . . . . . 8 . 3 5 3 Classes Destroyed 12 | . . . . 1 5 2 2 1 1 . . Worker 14 | . . . . . 6 2 . 1 . . 5 Builder 3 | . . . . . 1 . . . . 1 1 Tunneler 2 | . . . . . . . . 2 . . . Recycler 7 | . . . . . . 1 . 1 3 . 2 Watcher 4 | . . . . . 1 . . 1 1 1 . Swarmer 9 | . . . . . . . 4 . 1 4 . Grunt 11 | . . . . . . . 8 . 1 . 2 Duelist 1 | . . . . . . . . . 1 . . Sentry 6 | . . . . . 2 2 . . 1 . 1 Hunter 6 | . . . . . 1 . . . 2 1 2 Programmer 11 | . . . . . . 1 . . 6 2 2 Assembled 1 | . . . . 1 . . . . . . . Best Kill Streak 9 | . . . . 1 3 2 8 2 2 5 9 Combat Bots Only 8 | . . . . 1 1 1 8 . 2 4 3 Max Kills in Single Turn 3 | . . . . 1 1 1 2 1 2 2 3 Gunslinging . | . . . . . . . . . . . . Exploded 2 | . . . . . . . 2 . 2 2 1 Melee 1 | . . . . . . 1 1 . 1 1 1 Uniques/NPCs Destroyed . | . . . . . . . . . . . . Combat | -11 -10 -10 -10 -9 -8 -7 -7 -7 -6 -5 -4 -------- Run | Scr Mat Min Exi Min Mat Fac Gar Fac Fac Fac Fac Damage Taken 6989 | . . . . 522 341 430 1007 . 779 397 3513 Core 1704 | . . . . 95 13 86 217 . 145 35 1113 Absorbed by Shields . | . . . . . . . . . . . . Core Remaining (%) 82 | 100 . . . 62 97 . . 56 82 96 . Volleys Fired 64 | . 1 . . 3 14 1 11 . 10 10 14 Largest 3 | . 2 . . 2 3 3 3 . 3 3 3 Hottest 128 | . 40 . . 40 63 100 128 . 115 99 108 Shots Fired 161 | . 2 . . 6 33 3 30 . 25 22 40 Gun 108 | . 2 . . 6 29 2 9 . 18 14 28 Cannon 15 | . . . . . 4 1 7 . 3 . . Launcher 38 | . . . . . . . 14 . 4 8 12 Special . | . . . . . . . . . . . . Kinetic 108 | . 2 . . 6 29 2 9 . 18 14 28 Thermal . | . . . . . . . . . . . . Explosive 38 | . . . . . . . 14 . 4 8 12 Electromagnetic 15 | . . . . . 4 1 7 . 3 . . Robot Hit Streak 12 | . 1 . . . 8 9 12 . 4 6 7 Robot Miss Streak 7 | . 1 . . 7 4 1 3 . 4 5 3 Penetration Max 1 | . . . . . . . . . . . 1 Secondary Targets 1 | . . . . . . . . . . . 1 Max Gunslinging Chain 1 | . . . . . . . . . . . 1 Shots Hit Robots 181 | . 1 . . . 27 12 22 7 50 20 42 Core Hits 118 | . 1 . . 1 10 7 26 4 26 16 27 Critical Hits 7 | . . . . . . . . . 4 1 2 Critical Kills 2 | . . . . . . . . . 1 . 1 Critical Parts Destroyed 5 | . . . . . . . . . 3 1 1 Melee Attacks 246 | . . . . . 14 31 10 20 113 21 37 Impact . | . . . . . . . . . . . . Slashing 244 | . . . . . 14 31 10 19 112 21 37 Piercing 2 | . . . . . . . . 1 1 . . Sneak Attacks 25 | . . . . . 5 4 . 5 6 . 5 Combat Hostiles . | . . . . . . . . . . . . Follow-up Attacks 18 | . . . . . . 2 1 . 10 2 3 Damage Inflicted 11887 | . 10 . . 11 1420 1005 1643 673 2621 1364 3140 Guns 1244 | . 10 . . 11 188 13 48 . 230 237 507 Cannons 154 | . . . . . 15 6 117 . 16 . . Explosions 4442 | . . . . . 444 109 1224 . 465 768 1432 Melee 6043 | . . . . . 773 877 254 672 1910 359 1198 Ramming 4 | . . . . . . . . 1 . . 3 Kinetic 1244 | . 10 . . 11 188 13 48 . 230 237 507 Thermal . | . . . . . . . . . . . . Explosive 3830 | . . . . . . . 1224 . 406 768 1432 Electromagnetic 766 | . . . . . 459 115 117 . 75 . . Impact . | . . . . . . . . . . . . Slashing 6043 | . . . . . 773 877 254 672 1910 359 1198 Piercing . | . . . . . . . . . . . . Highest Corruption 26 | . . . . . 12 6 6 8 6 . 26 Average Corruption 4 | . . . . . 9 3 6 6 1 . 9 Corruption Purged . | . . . . . . . . . . . . Effects 151 | . . . . . 24 12 23 33 24 . 35 Message Errors 36 | . . . . . 4 5 8 7 7 . 5 Matter Fused 31 | . . . . . 5 3 5 10 2 . 6 Heat Flow Errors 18 | . . . . . 2 1 3 6 1 . 5 Energy Discharges 19 | . . . . . 3 1 . 6 9 . . Parts Rejected 2 | . . . . . . . . . . . 2 Data Loss (minor) 15 | . . . . . 4 2 2 3 2 . 2 Data Loss (major) 4 | . . . . . 1 . 1 1 . . 1 Misfires 3 | . . . . . 1 . 1 . . . 1 Alerts 1 | . . . . . . . . . . . 1 Misdirections 13 | . . . . . 4 . . . . . 9 Targeting Errors 9 | . . . . . . . 3 . 3 . 3 Overload Shots . | . . . . . . . . . . . . Overflow Damage 1634 | . . . . . 504 111 66 272 403 64 214 Projectiles . | . . . . . . . . . . . . Explosions 217 | . . . . . 18 . 66 . . 53 80 Melee 1417 | . . . . . 486 111 . 272 403 11 134 Knockbacks . | . . . . . . . . . . . . Impact . | . . . . . . . . . . . . Kinetic . | . . . . . . . . . . . . Secondary . | . . . . . . . . . . . . Self-Inflicted Damage 120 | . . . . . 75 . 44 . . . 1 Shots 2 | . . . . . 1 . 1 . . . . Rammed 3 | . . . . . . . . 1 . . 2 Targets Rammed 3 | . . . . . . . . 1 . . 2 Kicked . | . . . . . . . . . . . . Crushed . | . . . . . . . . . . . . Highest Temperature 405 | . . . . 15 215 110 405 260 168 116 190 Average Temperature 101 | . . . . 8 119 36 165 106 60 48 85 Received Heat Transfer 685 | . . . . 40 . 90 270 . 123 . 162 Siege Activations . | . . . . . . . . . . . . Robots Corrupted 2 | . . . . . 2 . . . . . . Combat Hostiles 2 | . . . . . 2 . . . . . . Parts Fried 4 | . . . . . 1 3 . . . . . Impact Corruptions . | . . . . . . . . . . . . Robots Melted . | . . . . . . . . . . . . Combat Hostiles . | . . . . . . . . . . . . Parts Melted . | . . . . . . . . . . . . Heat Transferred . | . . . . . . . . . . . . Parts Sabotaged . | . . . . . . . . . . . . Parts Stolen . | . . . . . . . . . . . . Parts Stripped . | . . . . . . . . . . . . Power Chain Reactions . | . . . . . . . . . . . . Missiles Intercepted . | . . . . . . . . . . . . Latent Energy Used 1131 | . . . . . 800 200 . . 131 . . LE Corruption 19 | . . . . . 12 3 . . 4 . . Alert | -11 -10 -10 -10 -9 -8 -7 -7 -7 -6 -5 -4 ------- Run | Scr Mat Min Exi Min Mat Fac Gar Fac Fac Fac Fac Peak Influence 611 | . 15 . . . 181 473 611 343 297 385 245 Initial 320 | . . . . . . 21 248 320 22 74 92 Average 132 | . 6 . . . 55 151 463 207 87 172 92 Maximum Alert Level 2 | . . . . . . 2 2 1 1 1 1 Low Security (%) 78 | 100 100 100 . 100 100 67 . 61 93 57 85 Level 1 15 | . . . . . . 12 39 38 6 42 14 Level 2 6 | . . . . . . 20 60 . . . . Level 3 . | . . . . . . . . . . . . Level 4 . | . . . . . . . . . . . . Level 5 . | . . . . . . . . . . . . High Security . | . . . . . . . . . . . . Max Security . | . . . . . . . . . . . . Squads Dispatched 15 | . . . . . 1 3 . . 7 1 3 Investigation . | . . . . . . . . . . . . Extermination 10 | . . . . . . 2 . . 5 1 2 Reinforcement 4 | . . . . . 1 . . . 2 . 1 Assault . | . . . . . . . . . . . . Garrison 1 | . . . . . . 1 . . . . . Intercept . | . . . . . . . . . . . . Construction Impeded 2 | . . . . . 1 . . . . . 1 Haulers Reinforced . | . . . . . . . . . . . . Stealth | -11 -10 -10 -10 -9 -8 -7 -7 -7 -6 -5 -4 --------- Run | Scr Mat Min Exi Min Mat Fac Gar Fac Fac Fac Fac Distress Signals 7 | . . . . . . 1 . . . 2 4 Communications Jammed . | . . . . . . . . . . . . Distress Signals . | . . . . . . . . . . . . Times Spotted 117 | . 3 1 . 21 5 10 13 1 24 10 29 Peak Tracking Total 21 | . 1 1 . 15 2 5 7 1 3 5 21 Tactical Retreats 9 | . . 1 . 3 . . . . 1 1 3 Traps | -11 -10 -10 -10 -9 -8 -7 -7 -7 -6 -5 -4 ------- Run | Scr Mat Min Exi Min Mat Fac Gar Fac Fac Fac Fac Traps Triggered 5 | . . . . . . 1 . 1 1 . 2 Indirectly . | . . . . . . . . . . . . Trap Hack Attempts . | . . . . . . . . . . . . Triggered . | . . . . . . . . . . . . Disarmed . | . . . . . . . . . . . . Reprogrammed . | . . . . . . . . . . . . Reused . | . . . . . . . . . . . . Traps Extracted . | . . . . . . . . . . . . Installed . | . . . . . . . . . . . . Triggered . | . . . . . . . . . . . . Exploded 1 | . . . . . . . 1 . . . . Machines | -11 -10 -10 -10 -9 -8 -7 -7 -7 -6 -5 -4 ---------- Run | Scr Mat Min Exi Min Mat Fac Gar Fac Fac Fac Fac Machines Disabled 10 | . . . . . 1 4 1 . 2 . 2 Max in Single Turn 4 | . . . . . 1 4 1 . 1 . 2 Garrison Access 2 | . . . . . . . . 1 1 . . Garrison Relay 1 | . . . . . . . 1 . . . . Machines Sabotaged . | . . . . . . . . . . . . Garrisons Compromised . | . . . . . . . . . . . . Overloaded Fab Kills . | . . . . . . . . . . . . Fab Network Shutdowns 1 | . . . . . . 1 . . . . . Hacking | -11 -10 -10 -10 -9 -8 -7 -7 -7 -6 -5 -4 --------- Run | Scr Mat Min Exi Min Mat Fac Gar Fac Fac Fac Fac Machines Accessed 62 | . 3 . 2 1 4 8 . 9 23 5 7 Terminals 32 | . 2 . . . 2 3 . 4 15 2 4 Fabricators 8 | . . . . . . 2 . 2 2 1 1 Repair Stations 4 | . . . . . . 1 . . 1 1 1 Recycling Units 8 | . 1 . . . . 1 . 1 3 1 1 Scanalyzers 4 | . . . . . 2 . . 1 1 . . Garrison Access 3 | . . . . . . 1 . 1 1 . . Total Hacks 147 | . 7 . 2 1 23 25 . 17 47 14 11 Successful 97 | . 5 . 2 1 20 18 . 11 27 7 6 Failed 50 | . 2 . . . 3 7 . 6 20 7 5 Catastrophic 7 | . . . . . . . . 1 5 . 1 Database Lockouts . | . . . . . . . . . . . . Manual 36 | . 3 . 1 . 9 3 . 2 11 5 2 Terminals 85 | . 6 . . . 14 11 . 8 33 6 7 Fabricators 23 | . . . . . . 9 . 4 4 5 1 Repair Stations 6 | . . . . . . 2 . . 1 2 1 Recycling Units 12 | . 1 . . . . 2 . 2 4 1 2 Scanalyzers 15 | . . . . . 9 . . 2 4 . . Garrison Access 3 | . . . . . . 1 . 1 1 . . Terminal Hacks 41 | . 3 . 2 1 8 7 . 1 14 2 3 Record 1 | . . . 1 . . . . . . . . Part Schematic 3 | . . . . . 1 . . 1 1 . . Open Door 1 | . . . . 1 . . . . . . . Level Access Points 2 | . . . . . 1 . . . 1 . . Branch Access Points 1 | . . . . . 1 . . . . . . Emergency Access Points 5 | . 1 . . . 1 1 . . 2 . . Terminal Index 4 | . . . . . 1 . . . 2 1 . Unreport Threat 4 | . 1 . . . 1 1 . . 1 . . Locate Traps 10 | . 1 . . . 1 3 . . 3 1 1 Patrol Status 1 | . . . . . . . . . 1 . . Recall Investigation 1 | . . . . . . . . . . . 1 Recall Extermination 1 | . . . . . . 1 . . . . . Recall Reinforcements 1 | . . . . . . . . . 1 . . Hauler Manifests 1 | . . . . . . . . . 1 . . Registered Components 2 | . . . . . . 1 . . 1 . . Zone Layout 2 | . . . . . 1 . . . . . 1 EX-Prototype ID Bank 1 | . . . 1 . . . . . . . . Fabricator Hacks 15 | . . . . . . 5 . 4 4 2 . Load Schematic 7 | . . . . . . 2 . 2 2 1 . Build 8 | . . . . . . 3 . 2 2 1 . Repair Station Hacks 4 | . . . . . . 2 . . . 2 . Scan Component 2 | . . . . . . 1 . . . 1 . Repair 2 | . . . . . . 1 . . . 1 . Recycling Unit Hacks 10 | . 1 . . . . 1 . 2 4 . 2 Process 4 | . . . . . . 1 . 1 1 . 1 Retrieve Matter 3 | . . . . . . . . 1 1 . 1 Retrieve Components 3 | . 1 . . . . . . . 2 . . Scanalyzer 13 | . . . . . 9 . . 2 2 . . Insert Component 6 | . . . . . 4 . . 1 1 . . Analyze 7 | . . . . . 5 . . 1 1 . . Garrison Access Hacks 3 | . . . . . . 1 . 1 1 . . Unlock Access 1 | . . . . . . 1 . . . . . Seal Access 2 | . . . . . . . . 1 1 . . Unauthorized Hacks 11 | . 1 . . . 3 2 . 1 2 1 1 Terminals 10 | . 1 . . . 3 1 . 1 2 1 1 Assimilate 3 | . . . . . 2 . . . 1 . . Botnet 7 | . 1 . . . 1 1 . 1 1 1 1 Fabricators 1 | . . . . . . 1 . . . . . Prioritize 1 | . . . . . . 1 . . . . . Repair Stations . | . . . . . . . . . . . . Recycling Units . | . . . . . . . . . . . . Scanalyzers . | . . . . . . . . . . . . Garrison Access . | . . . . . . . . . . . . Data Cores Recovered . | . . . . . . . . . . . . Used . | . . . . . . . . . . . . Hacking Detections 50 | . 3 . . . 3 8 . 6 18 5 7 Full Trace Events . | . . . . . . . . . . . . Feedback Events . | . . . . . . . . . . . . Feedback Blocked . | . . . . . . . . . . . . Robot Schematics Acquired . | . . . . . . . . . . . . Robots Built . | . . . . . . . . . . . . Matter . | . . . . . . . . . . . . Time . | . . . . . . . . . . . . Total Robot Build Rating . | . . . . . . . . . . . . Part Schematics Acquired 9 | . . . . . 5 . . 2 2 . . Parts Built 12 | . . . . . . 3 . 4 4 1 . Matter 1044 | . . . . . . 270 . 314 270 190 . Time 465 | . . . . . . 109 . 157 104 95 . Total Part Build Rating 38 | . . . . . . 9 . 14 10 5 . Parts Repaired 2 | . . . . . . 1 . . . 1 . Time 76 | . . . . . . 38 . . . 38 . Parts Recycled . | . . . . . . . . . . . . Recycled Matter 65 | . . . . . . 18 . 17 17 . 13 Retrieved Matter 47 | . . . . . . . . 17 17 . 13 Retrieved Components 11 | . 3 . . . . . . . 8 . . Parts Scanalyzed 6 | . . . . . 4 . . 1 1 . . Part Schematics Acquired 6 | . . . . . 4 . . 1 1 . . Parts Damaged . | . . . . . . . . . . . . Bothacking | -11 -10 -10 -10 -9 -8 -7 -7 -7 -6 -5 -4 ------------ Run | Scr Mat Min Exi Min Mat Fac Gar Fac Fac Fac Fac Used RIF Installer . | . . . . . . . . . . . . Robots Hacked . | . . . . . . . . . . . . Non-combat . | . . . . . . . . . . . . Combat . | . . . . . . . . . . . . Robot Hacks Applied . | . . . . . . . . . . . . Relay Couplers Released 3 | . . . . . . . 3 . . . . Machine Destruction 3 | . . . . . . . 3 . . . . Robots Rewired . | . . . . . . . . . . . . Allies Hacked . | . . . . . . . . . . . . Hacks Repelled . | . . . . . . . . . . . . Allies | -11 -10 -10 -10 -9 -8 -7 -7 -7 -6 -5 -4 -------- Run | Scr Mat Min Exi Min Mat Fac Gar Fac Fac Fac Fac Total Allies 5 | . . 3 . . 1 . . . 1 . . Largest Group 3 | . . 3 3 3 1 . . . 1 1 . Highest-Rated Group 40 | . . 40 40 40 10 . . . 10 10 . Highest-Rated Ally 16 | . . 16 16 16 10 . . . 10 10 . Total Orders 4 | . . . 2 . . . . . 2 . . STAY 2 | . . . 1 . . . . . 1 . . FOLLOW 2 | . . . 1 . . . . . 1 . . Ally Attacks 3 | . . . . 3 . . . . . . . Total Damage 48 | . . . . 48 . . . . . . . Kills . | . . . . . . . . . . . . Allies Corrupted . | . . . . . . . . . . . . Allies Melted . | . . . . . . . . . . . . Intel | -11 -10 -10 -10 -9 -8 -7 -7 -7 -6 -5 -4 ------- Run | Scr Mat Min Exi Min Mat Fac Gar Fac Fac Fac Fac Robot Analysis Total . | . . . . . . . . . . . . Derelict Logs Recovered 1 | . . . . 1 . . . . . . . Drone Launches . | . . . . . . . . . . . . Drone Recoveries . | . . . . . . . . . . . . Exploration | -11 -10 -10 -10 -9 -8 -7 -7 -7 -6 -5 -4 ------------- Run | Scr Mat Min Exi Min Mat Fac Gar Fac Fac Fac Fac Turns Passed 9667 | 69 172 95 645 245 1057 912 697 1034 3176 462 1103 Spaces Moved 6615 | 50 132 72 396 129 571 707 283 934 2330 301 710 Core 520 | 5 . . . . . . 50 309 . . 156 Treads . | . . . . . . . . . . . . Legs 966 | 45 132 72 396 129 192 . . . . . . Wheels 5126 | . . . . . 379 707 233 625 2330 301 551 Hover . | . . . . . . . . . . . . Flight 3 | . . . . . . . . . . . 3 Fastest Speed 40 | 50 120 120 120 180 100 100 50 50 110 115 40 Average Speed 117 | 113 120 120 160 180 136 103 151 95 114 115 106 Slowest Speed 1000 | 120 120 120 180 180 270 110 1000 110 115 125 180 Overloaded Moves . | . . . . . . . . . . . . Propulsion Burnouts . | . . . . . . . . . . . . Robots Hopped . | . . . . . . . . . . . . Cave-ins Triggered 1 | . . . . . . . . . . . 1 Exploration Rate (%) 34 | 3 49 26 70 32 39 22 45 19 70 7 26 Regions Visited 11 Branch Regions 3 Pre-discovered Areas . | . . . . . . . . . . . . Known Exits Taken 5 | . . . . . 1 1 . 1 1 1 . Unknown Exits Taken 5 | 1 1 1 1 1 . . . . . . . Scrap Searched . | . . . . . . . . . . . . Spaces Dug 126 | . . . . . 24 15 1 11 57 8 10 Terrain Destroyed 478 | . . . . . 87 36 45 11 110 119 70 Melee 110 | . . . . . 8 15 1 11 57 8 10 Projectile 3 | . . . . . . . . . 1 2 . AOE 365 | . . . . . 79 21 44 . 52 109 60 Terrain Rammed . | . . . . . . . . . . . . Walls Destroyed . | . . . . . . . . . . . . Machines Disabled . | . . . . . . . . . . . . Actions | -11 -10 -10 -10 -9 -8 -7 -7 -7 -6 -5 -4 --------- Run | Scr Mat Min Exi Min Mat Fac Gar Fac Fac Fac Fac Total 8003 | 59 145 80 408 136 791 828 519 1036 2654 364 983 Wait 714 | . . 9 . . 149 35 163 40 141 17 160 Move 6603 | 49 131 71 395 128 570 706 282 933 2329 300 709 Hop . | . . . . . . . . . . . . Pick Up 80 | 3 7 . 4 1 9 12 4 22 14 2 2 Fast Attach 48 | 6 1 . 2 1 9 4 1 6 7 1 10 Attach 39 | . . . . . 4 7 6 6 3 2 11 Detach 33 | . . . 3 . 1 5 8 1 4 1 10 Swap 117 | 1 1 . 1 1 11 14 14 4 40 13 17 Drop 91 | . 4 . 3 2 10 9 22 4 18 . 19 Fire 64 | . 1 . . 3 14 1 11 . 10 10 14 Melee 202 | . . . . . 14 27 8 19 88 18 28 Ram 3 | . . . . . . . . 1 . . 2 Kick . | . . . . . . . . . . . . Crush . | . . . . . . . . . . . . Escape Stasis 9 | . . . . . . 8 . . . . 1 Rewire . | . . . . . . . . . . . . Trap . | . . . . . . . . . . . . Miscellaneous . | . . . . . . . . . . . . Route ------- -11/Scrapyard -10/Materials (discovered 2 exits: [*Mat] / [*Min]) -10/Mines -10/Exiles -9/Mines -8/Materials (discovered 3 exits: *Fac x3) -7/Factory (discovered 3 exits: *Fac / [Low] / Gar) -7/Garrison -7/Factory -6/Factory (discovered 6 exits: *Fac x4 / *Low x2) -5/Factory -4/Factory (discovered 1 exit: *Upp) History --------- Turn | Location | Event 8 | -11/Scrapyard | Discovered new exit (range 15) 70 | -11/Scrapyard | Entered Materials 176 | -10/Materials | Met 8R-AWN 206 | -10/Materials | Discovered new exit (range 18) 224 | -10/Materials | Discovered new exit (range 16) 242 | -10/Materials | Entered Mines 244 | -10/Mines | Followed 8R-AWN into the Mines 244 | -10/Mines | Assisted by bots powering up and referring to "LRC-V3" 312 | -10/Mines | Build established: Mutant 330 | -10/Mines | Discovered new exit (range 5) 337 | -10/Mines | Entered Exiles 337 | -10/Exiles | Accompanied by 3 allies 365 | -10/Exiles | Welcomed by 8R-AWN 388 | -10/Exiles | Met EX-HEX 441 | -10/Exiles | Met EX-DEC 617 | -10/Exiles | Met EX-BIN 650 | -10/Exiles | Aligned with FarCom system 651 | -10/Exiles | Given EX-Vault access code 695 | -10/Exiles | Opened EX-Vault 706 | -10/Exiles | Found Supersonic Drone Bay 711 | -10/Exiles | Found Latent Energy Streamer 750 | -10/Exiles | Warned to stay clear of 0b10 Research branches 905 | -10/Exiles | Learned about 8R-AWN's background 959 | -10/Exiles | Discovered new exit (range 14) 982 | -10/Exiles | Left Exiles lab with Latent Energy Streamer 982 | -10/Exiles | Entered Mines 982 | -9/Mines | Accompanied by 3 allies 1020 | -9/Mines | Learned 2 Materials zone layouts 1037 | -9/Mines | Met a Derelict who couldn't figure out how to use a Trap Extractor 1153 | -9/Mines | Assembled infested the area 1158 | -9/Mines | Assisted by a Guerilla fighting off Assembled 1215 | -9/Mines | Discovered new exit (range 6) 1227 | -9/Mines | Entered Materials 1227 | -8/Materials | Evolved 4 slots: Utility x3, Weapon x1 1228 | -8/Materials | Identified exit to Factory 1555 | -8/Materials | Build established: Assassin 1869 | -8/Materials | System corruption reached 10% 2284 | -8/Materials | Entered Factory 2284 | -7/Factory | Evolved 2 slots: Power x1, Propulsion x1 2390 | -7/Factory | Fabricated Hcp. Storage Unit (x1) 2537 | -7/Factory | Discovered new exit (range 19) 2810 | -7/Factory | Repaired Lgt. Nuclear Core 2898 | -7/Factory | Local fabrication network quarantined 2918 | -7/Factory | Build established: Hauler-Assassin 2962 | -7/Factory | Fabricated Mic. Nuclear Core (x2) 2975 | -7/Factory | Discovered new exit (range 13) 3170 | -7/Factory | Identified exit to Garrison 3187 | -7/Factory | Garrison activated, responded to threat 3196 | -7/Factory | Entered Garrison 3216 | -7/Garrison | Triggered checkpoint 3449 | -7/Garrison | Triggered checkpoint 3449 | -7/Garrison | Triggered checkpoint 3494 | -7/Garrison | Destroyed 8 combat bots 3501 | -7/Garrison | Lost 6 parts (3n1u2w) 3541 | -7/Garrison | Discovered new exit (range 13) 3618 | -7/Garrison | Garrison Relay disabled 3632 | -7/Garrison | Triggered checkpoint 3787 | -7/Garrison | Lost 3 parts (1p1n1u) 3893 | -7/Garrison | Entered Factory 4007 | -7/Factory | Fabricated Lgt. Nuclear Core (x2) 4165 | -7/Factory | Build established: Mutant 4202 | -7/Factory | Fabricated Arm. Huge Wheel (x2) 4758 | -7/Factory | Discovered new exit (range 7) 4926 | -7/Factory | Identified exit to Factory 4927 | -7/Factory | Entered another Factory area 4927 | -6/Factory | Evolved 2 slots: Utility x2 5223 | -6/Factory | Build established: Hauler-Assassin 5829 | -6/Factory | Discovered new exit (range 10) 5844 | -6/Factory | Identified exit to Lower Caves 6165 | -6/Factory | Discovered new exit (range 16) 6193 | -6/Factory | Identified exit to Factory 6683 | -6/Factory | Fabricated Adv. Terrain Scanner? 7930 | -6/Factory | Fabricated Arm. Wheel? 8079 | -6/Factory | Discovered exit to Lower Caves (range 9) 8103 | -6/Factory | Entered another Factory area 8103 | -5/Factory | Accompanied by 1 ally 8103 | -5/Factory | Evolved 2 slots: Utility x2 8289 | -5/Factory | Discovered new exit (range 20) 8361 | -5/Factory | Fabricated Imp. Hacking Suite? 8501 | -5/Factory | Identified exit to Factory 8552 | -5/Factory | Repaired Imp. Weapon Shielding 8565 | -5/Factory | Entered another Factory area 8565 | -4/Factory | Evolved 2 slots: Utility x2 9257 | -4/Factory | Crushed by falling debris 9258 | -4/Factory | Build established: Hauler-Mutant 9258 | -4/Factory | System corruption reached 10% 9288 | -4/Factory | Lost 6 parts (2n3u1w) 9300 | -4/Factory | Spotted B-86 Titan 9539 | -4/Factory | Spotted B-86 Titan 9605 | -4/Factory | Core integrity fell below 50% 9642 | -4/Factory | Core integrity fell below 20% 9659 | -4/Factory | Discovered new exit (range 3) 9660 | -4/Factory | Identified exit to Upper Caves 9668 | -4/Factory | Self-destructed Last Messages --------------- 09589_ K-01 Serf collects debris. 09598_ System corrupted: Matter fused (-5). 09598_ Sneak attack on R-10 Processor. 09598_ Destroyed Com. Wheel. 09598_ R-10 Processor sends out distress signal. 09618_ V1XY,57X/GF#RGIDTB2AQCHQJRUO93VQE,J LD 09626_ Acquired Impulse Thruster. 09629_ Impulse Thruster destroyed. 09629_ Slammed into P-70 Sage. 09631_ Katana destroyed. 09635_ U-05 Engineer lays Concrete. 09636_ System corrupted: Heat flow error (+220). 09650_ Slammed into T-07 Excavator. 09651_ System corrupted: Matter fused (-9). 09655_ Acquired Adv. System Shield. 09659_ EXIT=FOUND 09660_ EXIT=IDENTIFIED: UPPER CAVES 09660_ W-44 Eye sends out distress signal. 09661_ Imp. Hacking Suite destroyed. 09666_ P-70 Sage resets P-70 Sage, system corruption cleaned. Map ----- +----------------------------------------------------+ | ?????????????????? | | ?????????????????? | | ?? ??????????????? | | # ########+#######????? ??????????????? | | # #????? #????? ??????????????? | | # #???? #????? ??????????????? | | # #???? #????? ??????????????? | | # ###? ] #????# ??????????????? | | # +? #????# ??????????????? | | # # #????# ??????????????? | | # # #????# ??????????????? | | # + #????# #?????????????? | | # ### #????# #?????????????? | | # #?? ] #????# #?????????????? | | # #??? ! #????# +?????????????? | | # #??? #????# #?????????????? | | # ####+##############?# #?????????????? | | #?????# !! ### ###???????????? | | #?????# !! #= p[ #???????????? | | ! #?????# !! # #???????????? | | !##### ####### p p > #???????????? | | #???# / ppppp# #???????????? | | ]#???# ####### ! !# p !#???????????? | | ]#???# #?????######### ###########??? | | #???# #??????????p??# # * #??? | | #???#+#?????????????+ @ / #??? | | #???????????????????#sss# #??? | | #???????????????????# ss# """ #??? | | ????????????????????# #?""" "" #??? | | ????????????????????# u #?""" """ #??? | | ????????????????????# #?? S"????? | | ????????????????????#w #?? ! ????? | | ????????????????????# #???#####????? | | ????????????????????# #????????????? | | ????????????????????# #????????????? | | ????????????????????+ h#????????????? | | ????????????????????# #????????????? | | ?????????????????????# #????????????? | | ????????????????????? h????????????? | | ????????????????????? ?????????????? | | ?????????????????????""" ?????????????? | | ?????????????????????""" ?????????????? | | ???????????????????????? ?????????????? | | ???????????????????????? ?????????????? | | ??????????????????????????????????????? | | ??????????????????????????????????????? | | ??????????????????????????????????????? | | ??????????????????????????????????????? | | ??????????????????????????????????????? | | ??????????????????????????????????????? | +----------------------------------------------------+ Best States ------------- Heat Dissipation 70 Energy Generation 31 Energy Capacity 520 Matter Stores 388 Matter Capacity 550 Sight Range 20 Terrain Scan Range 20 Terrain Scan Density 210 Additional Mass Support 9 Base Temperature (-) 100 Armor Coverage 225 Resistance: KI 30 Weapon Shielding 66 Evasion (%) 50 Melee Accuracy 8 Offensive Hacking 12 Defensive Hacking 14 Item Schematics ----------------- Hcp. Storage Unit | -8/Materials | Hacked Lgt. Nuclear Core | -8/Materials | Scanalyzed Rocket Launcher | -8/Materials | Scanalyzed Assault Rifle | -8/Materials | Scanalyzed Cryofiber Web | -8/Materials | Scanalyzed Arm. Huge Wheel | -7/Factory | Hacked Adv. Terrain Scanner | -7/Factory | Scanalyzed Arm. Wheel | -6/Factory | Scanalyzed Imp. Hacking Suite | -6/Factory | Hacked Robot Schematics ------------------ None Fabricated ------------ Hcp. Storage Unit | x1 | -7/Factory Mic. Nuclear Core | x2 | -7/Factory | Preloaded Lgt. Nuclear Core | x2 | -7/Factory Arm. Huge Wheel | x2 | -7/Factory Adv. Terrain Scanner | x2 | -6/Factory Arm. Wheel | x2 | -6/Factory Imp. Hacking Suite | x1 | -5/Factory Alien Tech Used ----------------- None Achievements -------------- None Challenges ------------ None Game ------ Seed MakeshiftScatterCasing Manual? 1 Play Time 02:31:10 Cumulative 235.2 hours Start 2020.09.29 @ 17:02:45 End 2020.09.30 @ 15:45:31 Sessions 2 Manual Loads 0 Difficulty Rogue Special Mode None Game No. 89 Rogue 53 Adventurer 36 Explorer 0 Win Type - Total 9 Types 9/0/0/0/0/0/0/0/0 Lore% 46 Gallery% 55 Achievement% 41 Wizard Run 0 Options --------- ASCII 0 Keyboard 1 Movement Vi Keybinds 0 Fullscreen 1 Font 18/Terminus Map View 76x50 Tactical HUD 1 Map Filters NONE Filters NONE Steam 0 RUN: 4d189c39-6a86-4874-907e-0e3066056fac